fUSD/lending_fUSD_20260213
["ID","MTS","AMOUNT","RATE_DAILY","PERIOD"]
[405337953,1771009863302,-500.0,0.00043835,120]
[405337954,1771009863312,-1664.85,0.00043835,120]
[405337955,1771009863322,-500.0,0.00043835,120]
[405337956,1771009863332,-500.0,0.00043835,120]
[405337957,1771009863341,-1664.85,0.00043835,120]
[405337958,1771009863350,-500.0,0.00043835,120]
[405337959,1771009863359,-500.0,0.00043835,120]
[405337961,1771009863369,-1664.85,0.00043835,120]
[405337962,1771009863382,-500.0,0.00043835,120]
[405337963,1771009863392,-500.0,0.00043835,120]
[405337964,1771009863402,-1664.96177952,0.00043835,120]
[405337965,1771009863411,-500.0,0.00043835,120]
[405337966,1771009863420,-500.0,0.00043835,120]
[405337967,1771009863433,-500.0,0.00043835,120]
[405337968,1771009863443,-500.0,0.00043835,120]
[405337969,1771009863453,-500.0,0.00043835,120]
[405337970,1771009863463,-500.0,0.00043835,120]
[405337971,1771009863474,-500.0,0.00043835,120]
[405337972,1771009863483,-500.0,0.00043835,120]
[405337973,1771009863494,-155.22618836,0.00043835,120]
[405337974,1771009863504,-500.0,0.00043835,120]
[405337975,1771009863513,-500.0,0.00043835,120]
[405337976,1771009863523,-500.0,0.00043835,120]
[405337977,1771009863532,-500.0,0.00043835,120]
[405337978,1771009863541,-413.29349307,0.00043835,120]
[405337979,1771009863550,-500.0,0.00043835,120]
[405337980,1771009863559,-498.10116258,0.00043835,120]
[405337981,1771009863568,-500.0,0.00043835,120]
[405337982,1771009863592,-500.0,0.00043835,120]
[405337983,1771009863602,-500.0,0.00043835,120]
[405337984,1771009863611,-500.0,0.00043835,120]
[405337985,1771009863622,-365.41591809,0.00043835,120]
[405337986,1771009863631,-500.0,0.00043835,120]
[405337987,1771009863641,-500.0,0.00043835,120]
[405337988,1771009863654,-500.0,0.00043835,120]
[405337989,1771009863663,-500.0,0.00043835,120]
[405337990,1771009863672,-500.0,0.00043835,120]
[405337992,1771009863681,-500.0,0.00043835,120]
[405337993,1771009863690,-500.0,0.00043835,120]
[405337994,1771009863700,-554.20907391,0.00043835,120]
[405337995,1771009863709,-264.185097,0.00043835,120]
[405337996,1771009863718,-500.0,0.00043835,120]
[405337997,1771009863728,-500.0,0.00043835,120]
[405337998,1771009863737,-500.0,0.00043835,120]
[405337999,1771009863746,-249.780998,0.00043835,120]
[405338000,1771009863756,-500.0,0.00043835,120]
[405338001,1771009863765,-500.0,0.00043835,120]
[405338002,1771009863774,-157.30785853,0.00043835,120]
[405338003,1771009863784,-500.0,0.00043835,120]
[405338004,1771009863794,-500.38406261,0.00043835,120]
[405338005,1771009863803,-500.0,0.00043835,120]
[405338006,1771009863812,-500.0,0.00043835,120]
[405338007,1771009863821,-8384.62,0.00043835,120]
[405338008,1771009863833,-500.0,0.00043835,120]
[405338009,1771009863842,-8384.62,0.00043835,120]
[405338010,1771009863852,-500.0,0.00043835,120]
[405338011,1771009863861,-8384.62,0.00043835,120]
[405338012,1771009863873,-500.0,0.00043835,120]
[405338013,1771009863883,-500.0,0.00043835,120]
[405338014,1771009863892,-500.0,0.00043835,120]
[405338015,1771009863901,-151.0,0.00043835,120]
[405338016,1771009863911,-8384.62,0.00043835,120]
[405338017,1771009863920,-500.0,0.00043835,120]
[405338018,1771009863929,-500.0,0.00043835,120]
[405338019,1771009863939,-500.0,0.00043835,120]
[405338020,1771009863948,-8384.62,0.00043835,120]
[405338021,1771009863957,-500.0,0.00043835,120]
[405338022,1771009863966,-228.70937445,0.00043835,120]
[405338023,1771009863975,-500.0,0.00043835,120]
[405338024,1771009863984,-8384.62,0.00043835,120]
[405338025,1771009863994,-500.0,0.00043835,120]
[405338026,1771009864003,-500.0,0.00043835,120]
[405338027,1771009864012,-8384.62,0.00043835,120]
[405338028,1771009864021,-500.0,0.00043835,120]
[405338029,1771009864031,-500.0,0.00043835,120]
[405338030,1771009864040,-8384.62,0.00043835,120]
[405338031,1771009864050,-500.0,0.00043835,120]
[405338032,1771009864060,-500.0,0.00043835,120]
[405338033,1771009864069,-400.0,0.00043835,120]
[405338034,1771009864078,-8384.62,0.00043835,120]
[405338035,1771009864087,-500.0,0.00043835,120]
[405338036,1771009864097,-400.0,0.00043835,120]
[405338037,1771009864106,-500.0,0.00043835,120]
[405338038,1771009864115,-8384.62,0.00043835,120]
[405338039,1771009864126,-500.0,0.00043835,120]
[405338040,1771009864135,-400.0,0.00043835,120]
[405338041,1771009864145,-500.0,0.00043835,120]
[405338042,1771009864154,-500.0,0.00043835,120]
[405338043,1771009864163,-8384.62,0.00043835,120]
[405338044,1771009864172,-500.0,0.00043835,120]
[405338045,1771009864182,-500.0,0.00043835,120]
[405338046,1771009864191,-400.0,0.00043835,120]
[405338047,1771009864200,-8384.62,0.00043835,120]
[405338048,1771009864209,-500.0,0.00043835,120]
[405338049,1771009864218,-288.29822493,0.00043835,120]
[405338050,1771009864227,-500.0,0.00043835,120]
[405338051,1771009864236,-400.0,0.00043835,120]
[405338052,1771009864245,-8384.62,0.00043835,120]
[405338053,1771009864255,-221.15825814,0.00043835,120]
[405338054,1771009864264,-215.69927818,0.00043835,120]
[405338055,1771009864274,-400.0,0.00043835,120]
[405338056,1771009864283,-8384.62,0.00043835,120]
[405338057,1771009864292,-400.0,0.00043835,120]
[405338058,1771009864301,-8384.62,0.00043835,120]
[405338059,1771009864310,-400.0,0.00043835,120]
[405338060,1771009864319,-8384.62,0.00043835,120]
[405338061,1771009864328,-400.0,0.00043835,120]
[405338062,1771009864337,-8384.62,0.00043835,120]
[405338063,1771009864347,-151.0,0.00043835,120]
[405338064,1771009864356,-400.0,0.00043835,120]
[405338065,1771009864365,-500.0,0.00043835,120]
[405338066,1771009864375,-8384.62,0.00043835,120]
[405338067,1771009864384,-151.0,0.00043835,120]
[405338068,1771009864393,-400.0,0.00043835,120]
[405338069,1771009864404,-500.0,0.00043835,120]
[405338070,1771009864413,-8384.62,0.00043835,120]
[405338071,1771009864423,-400.0,0.00043835,120]
[405338072,1771009864435,-500.0,0.00043835,120]
[405338073,1771009864445,-8384.62,0.00043835,120]
[405338074,1771009864454,-400.0,0.00043835,120]
[405338075,1771009864464,-390.55161084,0.00043835,120]
[405338076,1771009864475,-500.0,0.00043835,120]
[405338077,1771009864484,-500.0,0.00043835,120]
[405338078,1771009864494,-500.0,0.00043835,120]
[405338079,1771009864504,-400.0,0.00043835,120]
[405338080,1771009864514,-500.0,0.00043835,120]
[405338081,1771009864523,-500.0,0.00043835,120]
[405338082,1771009864533,-297.64381085,0.00043835,120]
[405338083,1771009864541,-8384.62,0.00043835,120]
[405338084,1771009864551,-400.0,0.00043835,120]
[405338085,1771009864560,-500.0,0.00043835,120]
[405338086,1771009864569,-500.0,0.00043835,120]
[405338087,1771009864579,-8384.62,0.00043835,120]
[405338088,1771009864588,-500.0,0.00043835,120]
[405338089,1771009864597,-500.0,0.00043835,120]
[405338090,1771009864607,-400.0,0.00043835,120]
[405338091,1771009864617,-8384.62,0.00043835,120]
[405338092,1771009864627,-500.0,0.00043835,120]
[405338093,1771009864637,-573.46235251,0.00043835,120]
[405338094,1771009864647,-400.0,0.00043835,120]
[405338095,1771009864656,-8384.77214781,0.00043835,120]
[405338096,1771009864667,-500.0,0.00043835,120]
[405338097,1771009864676,-400.0,0.00043835,120]
[405338098,1771009864685,-3672.88,0.00043835,120]
[405338099,1771009864695,-400.0,0.00043835,120]
[405338100,1771009864704,-3672.88,0.00043835,120]
[405338101,1771009864714,-400.0,0.00043835,120]
[405338102,1771009864723,-3672.88,0.00043835,120]
[405338103,1771009864732,-400.0,0.00043835,120]
[405338104,1771009864742,-3672.88,0.00043835,120]
[405338105,1771009864751,-248.84674239,0.00043835,120]
[405338106,1771009864761,-3672.88,0.00043835,120]
[405338107,1771009864771,-500.0,0.00043835,120]
[405338108,1771009864780,-3672.88,0.00043835,120]
[405338109,1771009864789,-500.0,0.00043835,120]
[405338110,1771009864799,-500.0,0.00043835,120]
[405338111,1771009864809,-3672.88,0.00043835,120]
[405338112,1771009864818,-213.62422932,0.00043835,120]
[405338113,1771009864827,-3672.88,0.00043835,120]
[405338114,1771009864836,-3672.88,0.00043835,120]
[405338115,1771009864845,-3672.88,0.00043835,120]
[405338116,1771009864854,-500.0,0.00043835,120]
[405338117,1771009864863,-3672.88,0.00043835,120]
[405338118,1771009864873,-500.0,0.00043835,120]
[405338119,1771009864882,-3672.88,0.00043835,120]
[405338120,1771009864891,-500.0,0.00043835,120]
[405338121,1771009864901,-500.0,0.00043835,120]
[405338122,1771009864911,-521.12894024,0.00043835,120]
[405338123,1771009864920,-89.52372863,0.00043835,120]
[405338124,1771009865248,-276.772,0.0001399,2]
[405338125,1771009865259,-279.16951596,0.0001399,2]
[405338126,1771009865426,-2034.18862272,0.00042921,2]
[405338127,1771009865512,-401.64377145,0.00042921,2]
[405338128,1771009865523,-14.16760583,0.00042921,2]
[405338129,1771009865532,-672.0,0.00043834,60]
[405338130,1771009865541,-661.83239417,0.00043835,120]
[405338131,1771009865554,-2921.5238772,0.00043835,120]
[405338132,1771009865563,-500.0,0.00043835,120]
[405338133,1771009865572,-53.47612265,0.00043835,120]
[405338134,1771009865583,-3619.40387735,0.00043835,120]
[405338135,1771009865592,-500.0,0.00043835,120]
[405338136,1771009865601,-500.0,0.00043835,120]
[405338137,1771009865611,-3672.88,0.00043835,120]
[405338138,1771009865621,-351.85732083,0.00043835,120]
[405338139,1771009865631,-364.40604364,0.00043835,120]
[405338140,1771009865640,-500.0,0.00043835,120]
[405338141,1771009865649,-500.0,0.00043835,120]
[405338142,1771009865659,-3672.88,0.00043835,120]
[405338143,1771009865668,-500.0,0.00043835,120]
[405338144,1771009865677,-500.0,0.00043835,120]
[405338145,1771009865686,-1530.57275846,0.00043835,120]
[405338146,1771009865699,-411.01636458,0.00043835,120]
[405338147,1771009865710,-619.82021063,0.00043835,120]
[405338148,1771009865722,-575.02790628,0.00043835,120]
[405338149,1771009865735,-536.44276005,0.00043835,120]
[405338150,1771009865745,-558.24538186,0.00043835,120]
[405338151,1771009865755,-500.0,0.00043835,120]
[405338152,1771009865765,-3672.88,0.00043835,120]
[405338153,1771009865774,-500.0,0.00043835,120]
[405338154,1771009865784,-948.04782309,0.00043835,120]
[405338155,1771009866259,500.0,0.00015389,120]
[405338156,1771009868014,292.83523467,0.00016928,120]
[405338158,1771009868744,3571.19617703,0.00016928,120]
[405338159,1771009869586,300.0,0.00016928,120]
[405338160,1771009869733,300.0,0.00021922,120]
[405338165,1771010122749,500.0,8.915e-05,2]
[405338177,1771010535247,578.41455293,0.00017,30]
[405338191,1771011032211,-253.27,7.4e-05,2]
[405338192,1771011032221,-250.0,8.14e-05,2]
[405338193,1771011032231,-250.0,9.892e-05,2]
[405338194,1771011032242,-398.23384923,0.000108,2]
[405338195,1771011032251,-238.30719466,0.0001136,2]
[405338196,1771011032261,-163.16895611,0.0001146,2]
[405338197,1771011032274,-136.83104389,0.0001146,2]
[405338198,1771011032283,-300.0,0.0001146,2]
[405338199,1771011032293,-63.16895611,0.0001146,2]
[405338200,1771011032309,-317.58984833,0.0001146,2]
[405338201,1771011032318,-500.0,0.00013102,2]
[405338202,1771011032328,-300.0,0.00013561,2]
[405338203,1771011032337,-98.25566497,0.00013561,2]
[405338204,1771011032357,-167.74433503,0.00013561,2]
[405338205,1771011032367,-300.0,0.00013561,2]
[405338206,1771011032377,-163.00906071,0.00013561,2]
[405338207,1771011032390,-1036.99093929,0.00013561,2]
[405338208,1771011032400,-300.0,0.00013561,2]
[405338209,1771011032409,-465.33568914,0.00013562,2]
[405338210,1771011032421,-7225.66431086,0.00013562,2]
[405338211,1771011032431,-150.0,0.00013598,2]
[405338212,1771011032440,-16624.00044974,0.00013599,2]
[405338213,1771011032450,-19888.792667,0.00013599,2]
[405338214,1771011032460,-7429.3188761,0.00013599,2]
[405338216,1771011032470,-1730.90607559,0.00013599,2]
[405338218,1771011032480,-192.73718597,0.000136,2]
[405338220,1771011032489,-301.90328647,0.00013676,2]
[405338222,1771011032498,-1000.0,0.00013685,2]
[405338223,1771011032508,-500.0,0.00013685,2]
[405338224,1771011032518,-194.00234347,0.00013685,2]
[405338225,1771011032528,-910168.03539467,0.00013686,2]
[405338226,1771011032540,-199501.37099595,0.00013686,2]
[405338227,1771011032552,-41524.51133102,0.00013686,2]
[405338228,1771011032563,-43376.50025772,0.00013686,2]
[405338229,1771011032575,-1254.41808677,0.00013686,2]
[405338236,1771011038276,-334.93038824,0.00013686,2]
[405338237,1771011038288,-1063.3811302,0.00013686,2]
[405338238,1771011038299,-6403.05,0.00013686,2]
[405338239,1771011038311,-2168364.51461543,0.00013686,2]
[405338240,1771011038321,-151.0,0.00013778,2]
[405338241,1771011038330,-151.0,0.00013778,2]
[405338242,1771011038340,-151.0,0.00013778,2]
[405338243,1771011038350,-151.0,0.00013778,2]
[405338244,1771011038359,-151.0,0.00013778,2]
[405338245,1771011038369,-151.0,0.00013778,2]
[405338246,1771011038379,-151.0,0.00013778,2]
[405338247,1771011038395,-151.0,0.00013778,2]
[405338248,1771011038405,-151.0,0.00013778,2]
[405338249,1771011038414,-151.0,0.00013778,2]
[405338250,1771011038423,-151.0,0.00013778,2]
[405338251,1771011038433,-151.0,0.00013778,2]
[405338252,1771011038443,-151.0,0.00013778,2]
[405338253,1771011038452,-151.0,0.00013778,2]
[405338254,1771011038462,-151.0,0.00013778,2]
[405338255,1771011038472,-151.0,0.00013778,2]
[405338256,1771011038481,-151.0,0.00013778,2]
[405338257,1771011038490,-151.0,0.00013778,2]
[405338258,1771011038499,-151.0,0.00013778,2]
[405338259,1771011038509,-151.0,0.00013778,2]
[405338260,1771011038519,-209.286,0.00013795,2]
[405338261,1771011038528,-1093.186,0.00013795,2]
[405338262,1771011038537,-500.0,0.00013795,2]
[405338263,1771011038547,-9999.99,0.00013848,2]
[405338264,1771011038556,-299.99,0.00013848,2]
[405338265,1771011038565,-150.99,0.00013848,2]
[405338266,1771011038575,-500.0,0.00013889,2]
[405338267,1771011038585,-500.0,0.00013889,2]
[405338268,1771011038594,-500.0,0.00013889,2]
[405338269,1771011038603,-500.0,0.00013889,2]
[405338270,1771011038612,-500.0,0.00013889,2]
[405338272,1771011038621,-500.0,0.00013889,2]
[405338274,1771011038631,-500.0,0.00013889,2]
[405338276,1771011038641,-500.0,0.00013889,2]
[405338278,1771011038651,-500.0,0.00013889,2]
[405338280,1771011038660,-500.0,0.00013889,2]
[405338282,1771011038670,-500.0,0.00013889,2]
[405338284,1771011038680,-500.0,0.00013889,2]
[405338286,1771011038690,-500.0,0.00013889,2]
[405338288,1771011038699,-434.74511203,0.00013889,2]
[405338290,1771011038708,-500.0,0.00013889,2]
[405338292,1771011038718,-529.97276172,0.00013889,2]
[405338294,1771011038728,-721.6,0.00013889,2]
[405338296,1771011038737,-721.6,0.00013889,2]
[405338298,1771011038747,-721.6,0.00013889,2]
[405338300,1771011038757,-721.6,0.00013889,2]
[405338302,1771011038767,-721.6,0.00013889,2]
[405338304,1771011038776,-721.6,0.00013889,2]
[405338306,1771011038786,-721.6,0.00013889,2]
[405338308,1771011038795,-721.6,0.00013889,2]
[405338310,1771011038805,-721.6,0.00013889,2]
[405338312,1771011038819,-721.6,0.00013889,2]
[405338314,1771011038829,-721.6,0.00013889,2]
[405338316,1771011038838,-721.6,0.00013889,2]
[405338318,1771011038847,-721.6,0.00013889,2]
[405338320,1771011038857,-721.6,0.00013889,2]
[405338322,1771011038867,-500.0,0.00013889,2]
[405338323,1771011038876,-500.0,0.00013889,2]
[405338324,1771011038889,-500.0,0.00013889,2]
[405338325,1771011038899,-500.0,0.00013889,2]
[405338326,1771011038909,-500.0,0.00013889,2]
[405338327,1771011038918,-500.0,0.00013889,2]
[405338328,1771011038928,-500.0,0.00013889,2]
[405338329,1771011038938,-500.0,0.00013889,2]
[405338330,1771011038948,-500.0,0.00013889,2]
[405338331,1771011038957,-500.0,0.00013889,2]
[405338332,1771011038966,-500.0,0.00013889,2]
[405338333,1771011038975,-529.73506278,0.00013889,2]
[405338334,1771011038985,-173.38608461,0.00013976,2]
[405338335,1771011038995,-16624.00044972,0.0001407,2]
[405338336,1771011039005,-16624.00044972,0.00014541,2]
[405338337,1771011039014,-2640.45,0.00014666,2]
[405338338,1771011039023,-255.0,0.00014713,2]
[405338339,1771011039034,-303.0,0.00014863,2]
[405338340,1771011039044,-1200.0,0.00014917,2]
[405338341,1771011039054,-16624.00044972,0.00015012,2]
[405338342,1771011039063,-301.90328647,0.00015127,2]
[405338343,1771011039073,-96372.26098994,0.00015137,2]
[405338344,1771011039083,-16624.00044972,0.00015483,2]
[405338345,1771011039092,-7429.3188761,0.0001575,2]
[405338346,1771011039101,-1730.90607559,0.0001575,2]
[405338347,1771011039111,-192.73718597,0.0001575,2]
[405338348,1771011039121,-433.0,0.00015923,2]
[405338349,1771011039131,-16624.00044972,0.00015954,2]
[405338350,1771011039140,-575.78,0.00016092,2]
[405338351,1771011039151,-768.72310663,0.000162,2]
[405338352,1771011039160,-419984.96857857,0.000162,5]
[405338353,1771011039170,-16624.00044972,0.00016425,2]
[405338354,1771011039180,-16624.00044972,0.00016896,2]
[405338355,1771011039190,-360309.93712253,0.00017,2]
[405338356,1771011039200,-362.0,0.00017229,2]
[405338357,1771011039209,-16624.00044972,0.00017367,2]
[405338358,1771011039219,-201.36149986,0.00017403,2]
[405338359,1771011039229,-575.78,0.00017462,2]
[405338360,1771011039238,-155.34959577,0.00017694,2]
[405338361,1771011039248,-783.90308371,0.000177,2]
[405338362,1771011039258,-5921.24782292,0.00017731,2]
[405338363,1771011039267,-481.89542728,0.00017742,2]
[405338364,1771011039277,-481.89542729,0.00017742,2]
[405338365,1771011039287,-800.0,0.00017808,2]
[405338366,1771011039296,-878.1502,0.00017838,2]
[405338367,1771011039486,-10163.6,0.00017838,2]
[405338368,1771011039503,-2500.0,0.00017838,2]
[405338369,1771011039513,-2094.43081496,0.00017838,2]
[405338370,1771011039522,-16624.00044972,0.00017838,2]
[405338371,1771011039532,-2094.43081493,0.00017855,2]
[405338372,1771011039541,-1003.56652033,0.0001786,2]
[405338373,1771011039550,-2094.43081493,0.00017871,2]
[405338374,1771011039559,-2094.43081493,0.00017888,2]
[405338375,1771011039570,-1827.83673672,0.000179,2]
[405338376,1771011039579,-7429.3188761,0.000179,2]
[405338377,1771011039588,-1730.90607559,0.000179,2]
[405338378,1771011039597,-192.73718597,0.000179,2]
[405338379,1771011039606,-2094.43081493,0.00017904,2]
[405338380,1771011039615,-1827.83673671,0.00017919,2]
[405338381,1771011039624,-2094.43081493,0.00017921,2]
[405338382,1771011039632,-151.0,0.00017935,2]
[405338383,1771011039647,-179.70658486,0.00017937,2]
[405338384,1771011039655,-374.16268162,0.00017937,2]
[405338385,1771011039664,-500.0,0.00017937,2]
[405338386,1771011039672,-500.0,0.00017937,2]
[405338387,1771011039680,-500.0,0.00017937,2]
[405338388,1771011039688,-267.21789065,0.00017937,2]
[405338389,1771011039696,-500.0,0.00017937,2]
[405338390,1771011039706,-239.73473137,0.00017937,2]
[405338391,1771011039714,-500.0,0.00017937,2]
[405338392,1771011039724,-500.0,0.00017937,2]
[405338393,1771011039733,-500.0,0.00017937,2]
[405338394,1771011039743,-500.0,0.00017937,2]
[405338395,1771011039752,-500.0,0.00017937,2]
[405338396,1771011039762,-500.0,0.00017937,2]
[405338397,1771011039771,-500.0,0.00017937,2]
[405338398,1771011039781,-500.0,0.00017937,2]
[405338399,1771011039790,-500.0,0.00017937,2]
[405338400,1771011039799,-500.0,0.00017937,2]
[405338401,1771011039810,-500.0,0.00017937,2]
[405338402,1771011039821,-500.0,0.00017937,2]
[405338403,1771011039831,-500.0,0.00017937,2]
[405338404,1771011039840,-500.0,0.00017937,2]
[405338405,1771011039849,-500.0,0.00017937,2]
[405338406,1771011039860,-500.0,0.00017937,2]
[405338407,1771011039869,-500.0,0.00017937,2]
[405338408,1771011039878,-500.0,0.00017937,2]
[405338409,1771011039888,-500.0,0.00017937,2]
[405338410,1771011039898,-500.0,0.00017937,2]
[405338411,1771011039908,-500.0,0.00017937,2]
[405338412,1771011039917,-500.0,0.00017937,2]
[405338413,1771011039927,-500.0,0.00017937,2]
[405338414,1771011039936,-500.0,0.00017937,2]
[405338415,1771011039946,-500.0,0.00017937,2]
[405338416,1771011039956,-500.0,0.00017937,2]
[405338417,1771011039966,-500.0,0.00017937,2]
[405338418,1771011039975,-500.0,0.00017937,2]
[405338419,1771011039984,-500.0,0.00017937,2]
[405338420,1771011039998,-331.63380577,0.00017937,2]
[405338421,1771011040008,-500.0,0.00017937,2]
[405338422,1771011040017,-500.0,0.00017937,2]
[405338423,1771011040027,-500.0,0.00017937,2]
[405338424,1771011040038,-500.0,0.00017937,2]
[405338425,1771011040049,-500.0,0.00017937,2]
[405338426,1771011040058,-500.0,0.00017937,2]
[405338427,1771011040068,-500.0,0.00017937,2]
[405338428,1771011040077,-500.0,0.00017937,2]
[405338429,1771011040088,-500.0,0.00017937,2]
[405338431,1771011040097,-500.0,0.00017937,2]
[405338432,1771011040107,-500.0,0.00017937,2]
[405338433,1771011040116,-500.0,0.00017937,2]
[405338434,1771011040126,-504.54469483,0.00017937,2]
[405338435,1771011040135,-1614.55677779,0.00017937,2]
[405338436,1771011040145,-500.0,0.00017937,2]
[405338437,1771011040155,-500.0,0.00017937,2]
[405338438,1771011040165,-500.0,0.00017937,2]
[405338439,1771011040174,-721.6,0.00017937,2]
[405338440,1771011040184,-721.6,0.00017937,2]
[405338441,1771011040193,-507.92586817,0.00017937,2]
[405338442,1771011040203,-721.6,0.00017937,2]
[405338443,1771011040212,-500.0,0.00017937,2]
[405338444,1771011040222,-500.0,0.00017937,2]
[405338445,1771011040231,-500.0,0.00017937,2]
[405338446,1771011040240,-2094.43081493,0.00017937,2]
[405338447,1771011040250,-1827.83673671,0.00017937,2]
[405338448,1771011040259,-500.0,0.00017937,2]
[405338449,1771011040269,-12613.4283,0.00017938,2]
[405338450,1771011040279,-1000.0,0.00017938,2]
[405338451,1771011040289,-670366.7443,0.00017938,2]
[405338452,1771011040298,-422.4266,0.00017938,2]
[405338453,1771011040307,-384200.83965089,0.00017974,2]
[405338454,1771011040317,-301.90328647,0.0001799,2]
[405338455,1771011040327,-151.0,0.00017997,2]
[405338456,1771011040337,-666.0,0.00017999,2]
[405338457,1771011040347,-300.0,0.00017999,2]
[405338458,1771011040356,-666.0,0.00017999,2]
[405338459,1771011040366,-764.52603621,0.00017999,2]
[405338460,1771011040377,-157096.88279991,0.00017999,2]
[405338461,1771011040389,-2725910.94407239,0.00018,2]
[405338462,1771011040663,-17047.18081075,0.00018,2]
[405338463,1771011040675,-2615.92995068,0.00018,2]
[405338464,1771011040687,-867.29626824,0.00018,2]
[405338477,1771011040996,-1193.6315611,0.00018,2]
[405338478,1771011041018,-7529.25,0.00018,2]
[405338479,1771011041033,-34974772.237339,0.00018,2]
[405338480,1771011041045,-1427224.43802933,0.00018,2]
[405338481,1771011041054,-35225.73009686,0.00018,2]
[405338482,1771011041064,-3716386.36798209,0.00018,2]
[405338483,1771011041114,-367.09908,0.00018,2]
[405338484,1771011041142,-1520863.35686935,0.00018,2]
[405338509,1771011043944,-320.0,0.00018,2]
[405338512,1771011044052,-1660.0,0.00018,2]
[405338513,1771011044740,-3498.76588022,0.00018,2]
[405338515,1771011046218,-1668.51342935,0.00018,2]
[405338516,1771011046330,-20628.50000023,0.00018,2]
[405338517,1771011046341,-10293.29999945,0.00018,2]
[405338518,1771011046439,-376.09715932,0.00018,2]
[405338555,1771011401140,-1380.946,0.00013314,2]
[405338556,1771011401173,-70.679,0.00013314,2]
[405338557,1771011423099,-96.75,0.00013314,2]
[405338558,1771011423121,-300.0,0.00013385,2]
[405338559,1771011423145,-1200.0,0.00013385,2]
[405338560,1771011423167,-300.0,0.00013385,2]
[405338561,1771011423190,-14961.60040482,0.00013386,2]
[405338562,1771011423212,-3141.64959518,0.00013386,2]
[405338567,1771011488896,-777.22391752,0.00013386,2]
[405338568,1771011488918,-300.0,0.00013424,2]
[405338569,1771011488942,-150.0,0.00013461,2]
[405338570,1771011488966,-22864.59149828,0.00013486,2]
[405338571,1771011488989,-500.0,0.00013578,2]
[405338572,1771011489009,-500.0,0.00013578,2]
[405338573,1771011489032,-268.46648169,0.00013578,2]
[405338574,1771011489055,-200.0,0.00013578,2]
[405338575,1771011489077,-500.0,0.00013578,2]
[405338576,1771011489099,-500.0,0.00013578,2]
[405338577,1771011489122,-500.0,0.00013578,2]
[405338578,1771011489145,-500.0,0.00013578,2]
[405338579,1771011489166,-500.0,0.00013578,2]
[405338580,1771011489188,-500.0,0.00013578,2]
[405338581,1771011489210,-500.0,0.00013578,2]
[405338582,1771011489232,-500.0,0.00013578,2]
[405338583,1771011489253,-439.71810251,0.00013578,2]
[405338584,1771011524022,-2500.0,0.00013362,2]
[405338585,1771011524046,-195.0,0.00013405,2]
[405338586,1771011524071,-195.0,0.00013467,2]
[405338587,1771011524093,-201.46894939,0.00013467,2]
[405338588,1771011524115,-60.28189749,0.00013578,2]
[405338589,1771011524141,-500.0,0.00013578,2]
[405338590,1771011524163,-500.0,0.00013578,2]
[405338591,1771011524185,-151.0,0.00013578,2]
[405338592,1771011524206,-151.0,0.00013578,2]
[405338593,1771011524228,-151.0,0.00013578,2]
[405338594,1771011524248,-151.0,0.00013578,2]
[405338595,1771011524269,-151.0,0.00013578,2]
[405338596,1771011524290,-151.0,0.00013578,2]
[405338597,1771011524311,-151.0,0.00013578,2]
[405338598,1771011524333,-151.0,0.00013578,2]
[405338599,1771011524354,-151.0,0.00013578,2]